bitfinex/quotes_BTCUSD_20241229
["timestamp","ask_amount","ask_price","bid_price","bid_amount"]
[1735433415976,1.66235688,95291.0,95279.0,0.0453]
[1735433416208,1.645891,95290.0,95288.0,0.009]
[1735433416435,1.645891,95290.0,95279.0,0.0453]
[1735433417337,1.645891,95290.0,95288.0,0.003]
[1735433417817,1.645891,95290.0,95288.0,0.009]
[1735433418326,1.646891,95290.0,95288.0,0.009]
[1735433418527,1.645891,95289.0,95279.0,0.0453]
[1735433418728,1.645891,95289.0,95288.0,0.003]
[1735433419133,1.645891,95289.0,95288.0,0.012]
[1735433419760,1.646891,95289.0,95288.0,0.012]
[1735433420663,1.646891,95289.0,95288.0,0.009]
[1735433420886,1.645891,95289.0,95285.0,8.54e-05]
[1735433421085,1.645891,95290.0,95288.0,0.007]
[1735433421297,0.00200004,95289.0,95288.0,0.007]
[1735433421553,1.646891,95289.0,95285.0,8.54e-05]
[1735433421753,1.645891,95288.0,95285.0,8.54e-05]
[1735433422287,1.645891,95290.0,95288.0,0.005]
[1735433422615,1.645891,95290.0,95285.0,8.54e-05]
[1735433422941,0.001,95288.0,95285.0,0.0060854]
[1735433423143,1.402608,95287.0,95285.0,0.0060854]
[1735433423390,0.515382,95286.0,95285.0,0.0829854]
[1735433423539,0.795154,95287.0,95285.0,0.0829854]
[1735433423743,0.855413,95287.0,95285.0,0.0829854]
[1735433424169,0.855413,95287.0,95285.0,0.0769854]
[1735433424371,1.645891,95290.0,95285.0,0.0769854]
[1735433424571,1.645891,95290.0,95288.0,0.005]
[1735433424790,1.645891,95290.0,95285.0,0.0789854]
[1735433425250,0.001,95287.0,95285.0,0.0839854]
[1735433425513,1.098565,95286.0,95285.0,0.0769854]
[1735433425716,1.043932,95286.0,95285.0,0.0779854]
[1735433426464,1.043932,95286.0,95285.0,0.0839854]
[1735433426688,1.043932,95286.0,95285.0,0.0829854]
[1735433427087,1.043932,95286.0,95285.0,0.0849854]
[1735433427489,0.929418,95286.0,95285.0,0.0829854]
[1735433427665,0.929418,95286.0,95285.0,0.0809854]
[1735433428094,0.930418,95286.0,95285.0,0.0879854]
[1735433428290,0.930418,95286.0,95285.0,0.0809854]
[1735433428671,0.931418,95286.0,95285.0,0.0899854]
[1735433429687,0.872406,95286.0,95285.0,0.0899854]
[1735433430903,0.846663,95286.0,95285.0,0.0899854]
[1735433431121,0.765193,95286.0,95285.0,0.0899854]
[1735433431615,0.55585774,95286.0,95285.0,0.0899854]
[1735433431902,0.5657378,95286.0,95285.0,0.0899854]
[1735433435887,0.58220411,95286.0,95285.0,0.0899854]
[1735433437013,0.64715837,95286.0,95285.0,0.0899854]
[1735433437256,0.62788437,95286.0,95285.0,0.0859854]
[1735433437469,0.62788437,95286.0,95285.0,0.0889854]
[1735433437898,0.62788437,95286.0,95285.0,0.0859854]
[1735433438381,0.62788437,95286.0,95285.0,0.0899854]
[1735433440125,0.62788437,95286.0,95285.0,0.0859854]
[1735433440586,0.62788437,95286.0,95285.0,0.0130854]
[1735433441058,0.62788437,95286.0,95285.0,8.54e-05]
[1735433441315,0.62788437,95286.0,95285.0,0.0120854]
[1735433441543,0.62788437,95286.0,95285.0,0.0030854]
[1735433441764,1.16270437,95286.0,95285.0,0.0120854]
[1735433441998,1.08547637,95286.0,95285.0,0.0120854]
[1735433442224,1.07299817,95286.0,95285.0,0.0120854]
[1735433442745,1.05653186,95286.0,95285.0,0.0120854]
[1735433443197,1.05653186,95286.0,95285.0,0.0090854]
[1735433443647,1.05653186,95286.0,95285.0,0.0130854]
[1735433445498,1.03959286,95286.0,95285.0,0.0130854]
[1735433447242,0.86234306,95286.0,95285.0,0.0130854]
[1735433447472,0.81901506,95286.0,95285.0,0.0130854]
[1735433451634,0.81901506,95286.0,95285.0,0.0040854]
[1735433451858,0.81901506,95286.0,95285.0,0.0130854]
[1735433452260,0.81901506,95286.0,95285.0,0.0090854]
[1735433452534,0.02651706,95286.0,95285.0,0.0120854]
[1735433452693,0.01005086,95286.0,95285.0,0.0120854]
[1735433452895,0.01005086,95286.0,95285.0,0.0030854]
[1735433453122,0.0001708,95286.0,95285.0,8.54e-05]
[1735433453341,1.36874426,95286.0,95285.0,0.0130854]
[1735433453541,1.3589918,95286.0,95285.0,0.0130854]
[1735433453736,1.36874426,95286.0,95285.0,0.0130854]
[1735433454592,1.35671826,95286.0,95285.0,0.0130854]
[1735433455349,1.30544926,95286.0,95285.0,0.0130854]
[1735433455549,1.23472826,95286.0,95285.0,0.0130854]
[1735433455935,1.25119446,95286.0,95285.0,0.0130854]
[1735433457843,1.18136046,95286.0,95285.0,0.0130854]
[1735433459139,1.15067946,95286.0,95285.0,0.0130854]
[1735433459514,1.10649846,95286.0,95285.0,0.0130854]
[1735433462782,1.09003226,95286.0,95285.0,0.0130854]
[1735433463177,1.09003226,95286.0,95285.0,0.0080854]
[1735433467126,0.52967226,95286.0,95285.0,0.0081708]
[1735433467327,0.54613868,95286.0,95285.0,0.0903708]
[1735433467868,0.54613868,95286.0,95285.0,0.0081708]
[1735433468915,0.02638968,95286.0,95285.0,0.0081708]
[1735433469135,1.46494568,95286.0,95285.0,0.0081708]
[1735433469335,1.45519322,95286.0,95285.0,0.0081708]
[1735433469641,1.46492395,95286.0,95285.0,0.0081708]
[1735433472238,1.35060395,95286.0,95285.0,0.0041708]
[1735433472452,1.35060395,95286.0,95285.0,8.54e-05]
[1735433472666,1.31034853,95286.0,95285.0,0.0120854]
[1735433472888,1.18580853,95286.0,95285.0,0.0120854]
[1735433476092,1.20227492,95286.0,95285.0,0.0120854]
[1735433480505,0.02636792,95286.0,95285.0,0.0120854]
[1735433480952,1.46492392,95286.0,95285.0,0.0120854]
[1735433481423,1.21517692,95286.0,95285.0,0.0120854]
[1735433482794,1.19871053,95286.0,95285.0,0.0120854]
[1735433484322,0.91727153,95286.0,95285.0,0.0120854]
[1735433484599,0.86605153,95286.0,95285.0,0.0120854]
[1735433485053,0.84460653,95286.0,95285.0,0.0120854]
[1735433486028,0.86107281,95286.0,95285.0,0.0120854]
[1735433487873,0.82130781,95286.0,95285.0,0.0120854]
[1735433488425,0.82130781,95286.0,95285.0,0.0090854]
[1735433488631,0.72348581,95286.0,95285.0,0.0090854]
[1735433488972,0.72348581,95286.0,95285.0,0.0120854]
[1735433489397,0.72348581,95286.0,95285.0,0.0090854]
[1735433490246,0.67922081,95286.0,95285.0,0.0090854]
[1735433490761,0.67922081,95286.0,95285.0,0.0120854]
[1735433492234,0.66275453,95286.0,95285.0,0.0120854]
[1735433493404,0.66275453,95286.0,95285.0,0.0030854]
[1735433493743,0.66275453,95286.0,95285.0,0.0080854]
[1735433494211,0.66275453,95286.0,95285.0,0.0110854]
[1735433495409,0.67922086,95286.0,95285.0,0.0110854]
[1735433497061,0.02636786,95286.0,95285.0,0.0110854]
[1735433497709,1.46492386,95286.0,95285.0,0.0110854]
[1735433498614,1.25398286,95286.0,95285.0,0.0110854]
[1735433498873,1.21689786,95286.0,95285.0,0.0110854]
[1735433499111,1.03439986,95286.0,95285.0,0.0110854]
[1735433499797,0.53439286,95286.0,95285.0,0.0110854]
[1735433501734,0.53439286,95286.0,95285.0,0.0869854]
[1735433502672,0.51792653,95286.0,95285.0,0.0869854]
[1735433503935,0.51792653,95286.0,95285.0,0.0839854]
[1735433504137,0.51792653,95286.0,95285.0,0.0859854]
[1735433504802,0.51792653,95286.0,95285.0,0.0839854]
[1735433504940,0.51792653,95286.0,95285.0,0.0869854]
[1735433506115,0.53439272,95286.0,95285.0,0.0869854]
[1735433506833,0.33927472,95286.0,95285.0,0.0869854]
[1735433507010,0.33610502,95286.0,95285.0,0.0869854]
[1735433508378,0.29522802,95286.0,95285.0,0.0869854]
[1735433509801,0.19510502,95286.0,95285.0,0.0869854]
[1735433512635,0.17863883,95286.0,95285.0,0.0869854]
[1735433517288,0.19510498,95286.0,95285.0,0.0869854]
[1735433521726,0.19510498,95286.0,95285.0,0.0110854]
[1735433522282,0.17863883,95286.0,95285.0,0.0110854]
[1735433523469,0.00673183,95286.0,95285.0,0.0110854]
[1735433523996,0.0001708,95286.0,95285.0,0.0110854]
[1735433524197,0.0067551,95286.0,95285.0,0.0110854]
[1735433524405,0.0001708,95286.0,95285.0,0.0110854]
[1735433524616,1.0130051,95286.0,95285.0,0.0110854]
[1735433525514,1.02947138,95286.0,95285.0,0.0110854]
[1735433525978,1.02947138,95286.0,95285.0,0.0030854]
[1735433526182,1.02947138,95286.0,95285.0,0.0090854]
[1735433526790,1.02947138,95286.0,95285.0,0.0060854]
[1735433527077,1.02947138,95286.0,95285.0,0.0020854]
[1735433527407,1.03047138,95286.0,95285.0,0.0080854]
[1735433528348,1.03047138,95286.0,95285.0,0.0110854]
[1735433533989,1.0140051,95286.0,95285.0,0.0110854]
[1735433534172,0.0077551,95286.0,95285.0,0.0110854]
[1735433534519,1.4397268,95286.0,95285.0,0.0110854]
[1735433534827,1.44630791,95286.0,95285.0,0.0110854]
[1735433536381,1.28196091,95286.0,95285.0,0.0110854]
[1735433536595,1.16027391,95286.0,95285.0,0.0110854]
[1735433538483,1.17674035,95286.0,95285.0,0.0110854]
[1735433541767,1.17674035,95286.0,95285.0,0.0864854]
[1735433541920,0.90222935,95286.0,95285.0,0.0834854]
[1735433542125,0.90222935,95286.0,95285.0,0.0100854]
[1735433542322,0.90122935,95286.0,95285.0,0.0020854]
[1735433542534,0.90122935,95286.0,95285.0,0.0040854]
[1735433542733,0.88476291,95286.0,95285.0,0.0040854]
[1735433542960,0.88476291,95286.0,95285.0,0.0030854]
[1735433543207,0.88576291,95286.0,95285.0,0.0110854]
[1735433544752,0.79911591,95286.0,95285.0,0.0110854]
[1735433544902,0.27284491,95286.0,95285.0,0.0110854]
[1735433545131,0.27284491,95286.0,95285.0,0.0940854]
[1735433545517,0.14325091,95286.0,95285.0,0.0940854]
[1735433545716,0.14325091,95286.0,95285.0,0.0890854]
[1735433546096,0.15971688,95286.0,95285.0,0.0890854]
[1735433547098,0.15971688,95286.0,95285.0,0.0891708]
[1735433552213,0.14325091,95286.0,95285.0,0.0891708]
[1735433553663,0.0054938,95286.0,95285.0,0.0891708]
[1735433553993,0.300772,95286.0,95285.0,0.0891708]
[1735433554213,1.303057,95310.0,95285.0,0.0891708]
[1735433554405,0.0054938,95286.0,95285.0,0.0891708]
[1735433554584,1.046439,95286.0,95285.0,0.0891708]
[1735433554782,1.303057,95320.0,95285.0,0.0891708]
[1735433554983,0.0054938,95286.0,95285.0,0.0891708]
[1735433555278,0.562184,95286.0,95285.0,0.0891708]
[1735433555426,0.002,95310.0,95285.0,0.0891708]
[1735433555644,0.02196281,95286.0,95285.0,0.0830854]
[1735433555857,0.983618,95286.0,95285.0,0.0830854]
[1735433556025,0.01646628,95286.0,95285.0,0.0830854]
[1735433556229,0.02196281,95286.0,95285.0,0.0850854]
[1735433556549,1.00324028,95286.0,95285.0,0.0850854]
[1735433556745,1.32501981,95286.0,95285.0,0.0850854]
[1735433557296,1.32601981,95286.0,95285.0,0.0930854]
[1735433557497,1.32601981,95286.0,95285.0,0.0850854]
[1735433557700,1.32601981,95286.0,95285.0,0.0830854]
[1735433557900,1.32601981,95286.0,95285.0,0.0850854]
[1735433558238,1.11746281,95286.0,95285.0,0.0850854]
[1735433558422,1.10581981,95286.0,95285.0,0.0830854]
[1735433558621,1.10599061,95286.0,95285.0,0.0860854]
[1735433558817,1.04228461,95286.0,95285.0,0.0950854]
[1735433559089,1.01285061,95286.0,95285.0,0.0950854]
[1735433559306,1.00120561,95286.0,95285.0,0.0950854]
[1735433562540,1.05663161,95286.0,95285.0,0.0950854]
[1735433562701,1.02843833,95286.0,95285.0,0.0950854]
[1735433563905,0.93963533,95286.0,95285.0,0.0950854]
[1735433564089,0.92799033,95286.0,95285.0,0.0950854]
[1735433565850,0.91789833,95286.0,95285.0,0.0950854]
[1735433566102,0.93436461,95286.0,95285.0,0.0950854]
[1735433568062,0.41329861,95286.0,95285.0,0.13318474]
[1735433568273,0.19049461,95286.0,95285.0,0.13318474]
[1735433569060,0.23649492,95306.0,95285.0,0.13318474]
[1735433569274,0.01646608,95286.0,95285.0,0.13318474]
[1735433569799,1.151819,95306.0,95286.0,0.0482]
[1735433570029,0.349962,95305.0,95288.0,0.0482]
[1735433570235,0.879075,95306.0,95290.0,0.0482]
[1735433570481,0.0164647,95301.0,95291.0,0.07674926]
[1735433570610,0.432894,95300.0,95292.0,0.07173342]
[1735433570812,0.372494,95300.0,95294.0,0.0829]
[1735433571082,0.385561,95300.0,95294.0,0.0829]
[1735433572826,0.385561,95300.0,95294.0,0.0929]
[1735433573235,1.151819,95310.0,95294.0,0.0929]
[1735433573643,0.00461014,95309.0,95294.0,0.0929]
[1735433573867,1.151819,95308.0,95294.0,0.0929]
[1735433574269,0.00462397,95307.0,95294.0,0.0909]
[1735433574483,1.151819,95306.0,95294.0,0.0909]
[1735433574684,1.151819,95306.0,95294.0,0.008]
[1735433575006,0.00461875,95305.0,95294.0,0.008]
[1735433575211,1.151819,95304.0,95286.0,0.09472889]
[1735433575361,0.0478,95303.0,95285.0,8.54e-05]
[1735433575558,1.151819,95302.0,95294.0,0.004]
[1735433575960,0.01646688,95301.0,95294.0,0.005]
[1735433576187,1.151819,95300.0,95294.0,0.005]
[1735433576381,1.151819,95300.0,95294.0,0.001]
[1735433576587,1.151819,95300.0,95285.0,8.54e-05]
[1735433582904,1.151819,95301.0,95285.0,8.54e-05]
[1735433584600,1.151819,95301.0,95286.0,0.0795]
[1735433584954,0.001,95301.0,95286.0,0.0795]
[1735433585155,1.151819,95300.0,95286.0,0.0795]
[1735433585829,1.151819,95302.0,95286.0,0.0795]
[1735433586040,0.01646632,95297.0,95286.0,0.0815]
[1735433586246,1.151819,95296.0,95286.0,0.0815]
[1735433586622,1.151819,95296.0,95286.0,0.0835]
[1735433587160,1.151819,95296.0,95287.0,0.048]
[1735433588001,1.151819,95295.0,95287.0,0.048]
[1735433588212,1.151819,95296.0,95287.0,0.06105854]
[1735433588414,1.151819,95296.0,95287.0,0.048]
[1735433588672,1.151819,95296.0,95287.0,0.052]
[1735433589456,1.151819,95296.0,95287.0,0.048]
[1735433589810,1.151819,95296.0,95287.0,0.052]
[1735433590947,1.151819,95296.0,95287.0,0.048]
[1735433591147,1.151819,95296.0,95287.0,0.052]
[1735433592783,1.151819,95307.0,95287.0,0.052]
[1735433594050,0.0001708,95301.0,95287.0,0.052]
[1735433594263,1.151819,95300.0,95287.0,0.052]
[1735433594464,1.151819,95300.0,95287.0,0.048]
[1735433596089,0.01646634,95297.0,95287.0,0.048]
[1735433596219,1.151819,95296.0,95287.0,0.048]
[1735433598201,1.152819,95296.0,95287.0,0.048]
[1735433598401,1.151819,95295.0,95287.0,0.048]
[1735433599555,0.001,95295.0,95287.0,0.048]
[1735433599764,1.151819,95294.0,95287.0,0.048]
[1735433601080,1.151819,95296.0,95287.0,0.048]
[1735433601282,0.001,95294.0,95287.0,0.048]
[1735433601605,1.151819,95293.0,95287.0,0.049]
[1735433602056,1.151819,95296.0,95287.0,0.049]
[1735433602252,1.152819,95296.0,95287.0,0.049]
[1735433602458,1.151819,95295.0,95287.0,0.049]
[1735433602659,1.151819,95295.0,95287.0,0.048]
[1735433602882,1.151819,95300.0,95287.0,0.048]
[1735433603981,0.001,95293.0,95287.0,0.048]
[1735433604181,1.151819,95292.0,95287.0,0.048]
[1735433604381,1.151819,95292.0,95287.0,0.049]
[1735433604646,1.153819,95300.0,95287.0,0.049]
[1735433604780,1.153819,95300.0,95287.0,0.048]
[1735433604781,1.151819,95299.0,95287.0,0.048]
[1735433605748,1.151819,95299.0,95287.0,0.05]
[1735433605897,0.0001708,95296.0,95287.0,0.05]
[1735433606092,1.151819,95295.0,95287.0,0.05]
[1735433607546,1.151819,95295.0,95287.0,0.048]
[1735433607767,1.152819,95295.0,95287.0,0.048]
[1735433608195,1.151819,95294.0,95287.0,0.048]
[1735433609842,1.151819,95294.0,95288.0,0.0795]
[1735433610393,0.001,95294.0,95288.0,0.0795]
[1735433610612,1.151819,95293.0,95288.0,0.0795]
[1735433610922,0.972754,95293.0,95288.0,0.0795]
[1735433611045,0.972754,95292.0,95288.0,0.0795]
[1735433611248,0.972754,95291.0,95290.0,0.0795]
[1735433611457,0.794683,95291.0,95290.0,0.0795]
[1735433611756,0.745567,95291.0,95290.0,0.1266]
[1735433612795,0.745567,95291.0,95290.0,0.1316]
[1735433613506,0.745567,95291.0,95290.0,0.1336]
[1735433614447,0.745567,95291.0,95290.0,0.1396]
[1735433617333,0.76203269,95291.0,95290.0,0.1396]
[1735433622797,0.745567,95291.0,95290.0,0.1396]
[1735433627269,0.76203269,95291.0,95290.0,0.1396]
[1735433628550,0.73769049,95291.0,95290.0,0.1396]
[1735433628751,0.70568642,95291.0,95290.0,0.1396]
[1735433629075,0.67303726,95291.0,95290.0,0.1396]
[1735433630360,0.67303726,95291.0,95290.0,0.1396854]
[1735433632693,0.65657157,95291.0,95290.0,0.1396854]
[1735433635912,0.67303717,95291.0,95290.0,0.1396854]
[1735433637328,0.3373826,95291.0,95290.0,0.1396854]
[1735433639257,0.1852406,95291.0,95290.0,0.1396854]
[1735433639464,0.1852406,95291.0,95290.0,0.15367956]
[1735433640848,0.1852406,95291.0,95290.0,0.1396854]
[1735433641202,0.1852406,95291.0,95290.0,0.1266854]
[1735433641610,0.1852406,95291.0,95290.0,0.1376854]
[1735433641830,0.1852406,95291.0,95290.0,0.1286854]
[1735433642248,0.1852406,95291.0,95290.0,0.1376854]
[1735433642648,0.168775,95291.0,95290.0,0.1376854]
[1735433643057,0.168775,95291.0,95290.0,0.1356854]
[1735433643477,0.168775,95291.0,95290.0,0.1396854]
[1735433645483,0.883759,95291.0,95290.0,0.1396854]
[1735433645850,0.883759,95292.0,95290.0,0.1396854]
[1735433646643,0.883759,95292.0,95290.0,0.1356854]
[1735433646840,0.883759,95292.0,95290.0,0.1396854]
[1735433647010,0.565384,95292.0,95290.0,0.1306854]
[1735433647212,0.58595431,95292.0,95290.0,0.1396854]
[1735433647413,0.626068,95291.0,95290.0,0.1396854]
[1735433647631,0.240235,95291.0,95290.0,0.15367956]
[1735433647837,0.203642,95291.0,95290.0,0.1396854]
[1735433648242,0.193513,95291.0,95290.0,0.1356854]
[1735433648661,0.193513,95291.0,95290.0,0.1306854]
[1735433648859,0.193513,95291.0,95290.0,0.1396854]
[1735433652002,0.281278,95292.0,95291.0,0.0802]
[1735433653689,0.281278,95292.0,95291.0,0.0842]
[1735433653828,0.281278,95292.0,95291.0,0.0932]
[1735433654033,0.281278,95292.0,95291.0,0.0802]
[1735433654476,0.281278,95292.0,95291.0,0.0922]
[1735433654717,0.281278,95292.0,95291.0,0.012]
[1735433655060,0.29774405,95292.0,95291.0,0.012]
[1735433655260,0.29774405,95292.0,95291.0,0.009]
[1735433657113,0.29774405,95292.0,95290.0,8.54e-05]
[1735433657297,0.883759,95291.0,95290.0,8.54e-05]
[1735433658595,0.883759,95291.0,95290.0,0.0020854]
[1735433662524,0.883759,95292.0,95290.0,0.0020854]
[1735433663317,0.883759,95292.0,95290.0,8.54e-05]
[1735433663522,0.883759,95292.0,95290.0,0.0020854]
[1735433665636,0.90022573,95292.0,95290.0,0.0020854]
[1735433665846,0.883759,95291.0,95290.0,0.0020854]
[1735433667126,0.883759,95291.0,95290.0,8.54e-05]
[1735433667301,0.883759,95291.0,95290.0,0.0020854]
[1735433674089,0.883759,95291.0,95290.0,8.54e-05]
[1735433674668,0.883759,95291.0,95290.0,0.0020854]
[1735433675752,0.90222636,95291.0,95290.0,0.0020854]
[1735433675953,0.90222636,95291.0,95290.0,8.54e-05]
[1735433676159,0.90022636,95291.0,95290.0,8.54e-05]
[1735433676361,0.90322636,95291.0,95290.0,8.54e-05]
[1735433676583,0.90422636,95291.0,95290.0,8.54e-05]
[1735433678295,0.90339716,95291.0,95290.0,8.54e-05]
[1735433678581,0.90439716,95291.0,95290.0,8.54e-05]
[1735433683303,0.8879298,95291.0,95290.0,8.54e-05]
[1735433686550,0.02063855,95291.0,95290.0,8.54e-05]
[1735433686772,0.90439755,95291.0,95290.0,8.54e-05]
[1735433693331,0.8879298,95291.0,95290.0,8.54e-05]
[1735433696414,0.90439743,95291.0,95290.0,8.54e-05]
[1735433700465,1.09348676,95291.0,95290.0,8.54e-05]
[1735433701674,0.90439743,95291.0,95290.0,8.54e-05]
[1735433702676,0.8879298,95291.0,95290.0,8.54e-05]
[1735433705746,0.90439691,95291.0,95290.0,8.54e-05]
[1735433710697,1.14089183,95291.0,95290.0,8.54e-05]
[1735433711578,0.03148999,95290.0,95280.0,0.07896747]
[1735433711824,0.94407443,95290.0,95255.0,0.14160292]
[1735433712027,0.883759,95289.0,95255.0,0.14160292]
[1735433712450,0.883759,95289.0,95258.0,0.00104975]
[1735433712854,0.18897522,95284.0,95258.0,0.00104975]
[1735433713032,0.883759,95283.0,95258.0,0.00104975]
[1735433713297,0.883759,95283.0,95254.0,0.00104965]
[1735433714129,0.883759,95283.0,95277.0,0.0487]
[1735433714542,0.883759,95283.0,95278.0,0.0827]
[1735433715819,0.01646818,95282.0,95278.0,0.0827]
[1735433716026,0.883759,95281.0,95278.0,0.0847]
[1735433716951,0.883759,95281.0,95278.0,0.0827]
[1735433717132,0.883759,95281.0,95278.0,0.0837]
[1735433717512,0.883759,95281.0,95278.0,0.001]
[1735433718147,0.91524899,95281.0,95278.0,0.001]
[1735433718337,0.883759,95280.0,95278.0,0.001]
[1735433718545,0.18897522,95279.0,95278.0,0.001]
[1735433718744,1.07273422,95279.0,95278.0,0.001]
[1735433719346,1.07273422,95279.0,95272.0,0.07975276]
[1735433719527,0.883759,95278.0,95272.0,0.07975276]
[1735433720420,0.18897522,95279.0,95272.0,0.07975276]
[1735433720629,0.883759,95278.0,95272.0,0.07975276]
[1735433720872,0.883759,95278.0,95273.0,0.0020854]
[1735433722660,1.07273422,95278.0,95273.0,0.0020854]
[1735433722858,0.883759,95277.0,95273.0,0.0020854]
[1735433723606,0.18897522,95276.0,95273.0,8.54e-05]
[1735433723806,0.883759,95275.0,95273.0,8.54e-05]
[1735433725637,0.883759,95275.0,95273.0,0.0010854]
[1735433726204,0.90022795,95275.0,95273.0,0.0010854]
[1735433726419,0.883759,95274.0,95273.0,0.0010854]
[1735433726630,0.883759,95274.0,95273.0,0.0020854]
[1735433727305,0.883759,95274.0,95273.0,8.54e-05]
[1735433728857,0.883759,95274.0,95273.0,0.0020854]
[1735433729720,0.883759,95274.0,95273.0,0.1314854]
[1735433732567,0.883759,95278.0,95273.0,0.1314854]
[1735433732987,0.883759,95278.0,95274.0,0.0803]
[1735433733158,0.687502,95277.0,95275.0,0.0491]
[1735433733367,0.652129,95276.0,95275.0,0.06228382]
[1735433733506,0.652129,95276.0,95275.0,0.0491]
[1735433733946,0.652129,95276.0,95275.0,0.1294]
[1735433735232,0.652129,95276.0,95275.0,0.1314]
[1735433735561,0.66859673,95276.0,95275.0,0.1384]
[1735433735763,0.40156973,95276.0,95275.0,0.1384]
[1735433735987,0.24307973,95276.0,95275.0,0.15228382]
[1735433736577,0.22760873,95276.0,95275.0,0.15228382]
[1735433736765,0.12024173,95276.0,95275.0,0.15228382]
[1735433736970,0.01646773,95276.0,95275.0,0.15228382]
[1735433737181,0.01646773,95276.0,95275.0,0.15333331]
[1735433737378,0.0001708,95280.0,95279.0,0.1]
[1735433737518,0.0001708,95283.0,95280.0,0.1256]
[1735433737729,0.0001708,95283.0,95282.0,0.1256]
[1735433737992,0.0001708,95283.0,95282.0,0.12664933]
[1735433739038,0.0001708,95283.0,95282.0,0.13564933]
[1735433739234,0.22814973,95313.0,95282.0,0.01004933]
[1735433739455,0.687502,95312.0,95288.0,0.0473]
[1735433739655,0.687502,95319.0,95290.0,0.1256]
[1735433739900,0.03148999,95318.0,95291.0,0.0783]
[1735433740098,0.687502,95317.0,95291.0,0.0783]
[1735433740897,0.01646462,95311.0,95293.0,0.0783]
[1735433741100,0.687502,95310.0,95295.0,0.0783]
[1735433741728,0.687502,95310.0,95296.0,0.0473]
[1735433741933,0.687502,95310.0,95297.0,0.0783]
[1735433743129,0.03148999,95309.0,95297.0,0.0783]
[1735433743333,0.687502,95308.0,95297.0,0.0783]
[1735433744573,0.687502,95308.0,95297.0,0.0803]
[1735433744784,0.687502,95308.0,95297.0,0.0783]
[1735433745199,0.688502,95308.0,95297.0,0.0783]
[1735433745565,0.687502,95307.0,95297.0,0.0783]
[1735433746572,0.688502,95308.0,95297.0,0.0783]
[1735433746776,0.687502,95307.0,95297.0,0.0783]
[1735433747380,0.01646466,95305.0,95297.0,0.0783]
[1735433747581,0.687502,95304.0,95297.0,0.0783]
[1735433748789,0.687502,95304.0,95297.0,0.0793]
[1735433753055,0.687502,95306.0,95297.0,0.0793]
[1735433754118,0.687502,95306.0,95297.0,0.0783]
[1735433754282,0.688502,95306.0,95297.0,0.0793]
[1735433754481,0.687502,95305.0,95297.0,0.0793]
[1735433755653,0.687502,95305.0,95297.0,0.0783]
[1735433755854,0.687502,95305.0,95297.0,0.0793]
[1735433756033,0.01646482,95304.0,95297.0,0.0793]
[1735433756234,0.687502,95303.0,95297.0,0.0793]
[1735433757255,0.687502,95303.0,95297.0,0.0783]
[1735433757591,0.687502,95303.0,95297.0,0.0803]
[1735433758122,0.687502,95303.0,95297.0,0.0783]
[1735433758520,0.687502,95303.0,95297.0,0.0803]
[1735433758820,0.687502,95303.0,95297.0,0.0803854]
[1735433759040,0.687502,95303.0,95297.0,0.0833854]
[1735433760921,0.687502,95303.0,95297.0,0.0783854]
[1735433762464,0.687502,95306.0,95297.0,0.0783854]
[1735433766963,0.01646474,95304.0,95297.0,0.0783854]
[1735433767136,0.687502,95303.0,95297.0,0.0783854]
[1735433771645,0.687502,95303.0,95298.0,0.0474]
[1735433771845,0.687502,95303.0,95299.0,0.0799]
[1735433782375,0.687502,95303.0,95299.0,0.0799854]
[1735433795356,0.01646474,95304.0,95299.0,0.0799854]
[1735433795551,0.687502,95303.0,95299.0,0.0799854]
[1735433797446,0.687502,95306.0,95299.0,0.0799854]
[1735433800453,0.01646454,95305.0,95299.0,0.0799854]
[1735433800664,0.687502,95304.0,95299.0,0.0799854]
[1735433807059,0.87616019,95304.0,95299.0,0.0799854]
[1735433807278,0.687502,95303.0,95299.0,0.0799854]
[1735433808169,0.687502,95304.0,95299.0,0.0799854]
[1735433811287,0.687502,95306.0,95299.0,0.0799854]
[1735433811420,0.687502,95303.0,95299.0,0.0799854]
[1735433811621,0.687502,95302.0,95299.0,0.0799854]
[1735433811822,0.687502,95306.0,95299.0,0.0799854]
[1735433812443,0.48217384,95306.0,95299.0,0.0799854]
[1735433812667,0.482174,95306.0,95299.0,0.0799854]
[1735433812837,0.482174,95305.0,95299.0,0.0799854]
[1735433813040,0.482174,95304.0,95299.0,0.0799854]
[1735433813194,0.482174,95303.0,95299.0,0.0799854]
[1735433813402,0.482174,95302.0,95299.0,0.0799854]
[1735433813627,0.482174,95301.0,95299.0,0.0799854]
[1735433813836,0.482174,95300.0,95299.0,0.0799854]
[1735433816583,0.482174,95300.0,95299.0,0.09273248]
[1735433816899,0.01646463,95302.0,95301.0,0.0817]
[1735433817047,0.01646463,95302.0,95301.0,0.33623548]
[1735433817248,0.01646463,95302.0,95301.0,0.33518632]
[1735433817837,0.12442863,95302.0,95301.0,0.33518632]
[1735433818037,0.12333063,95302.0,95301.0,0.36887479]
[1735433818437,0.01646463,95302.0,95301.0,0.36887479]
[1735433818753,0.01646463,95302.0,95301.0,0.36861007]
[1735433819581,0.14539363,95302.0,95301.0,0.36861007]
[1735433819882,0.14483663,95302.0,95301.0,0.36861007]
[1735433820134,0.14945065,95302.0,95301.0,0.36861007]
[1735433821886,0.02107865,95302.0,95301.0,0.36861007]
[1735433822286,0.01646463,95302.0,95301.0,0.36861007]
[1735433825774,0.01646463,95302.0,95301.0,0.33507436]
[1735433833819,0.28755583,95349.0,95312.0,0.0822]
[1735433834052,0.48691389,95348.0,95313.0,0.0822]
[1735433834186,0.482174,95347.0,95313.0,0.0822]
[1735433834388,0.00473468,95346.0,95313.0,0.0822]
[1735433834591,0.482174,95345.0,95315.0,0.0822]
[1735433834853,0.00472936,95344.0,95315.0,0.0822]
[1735433835090,0.482174,95343.0,95316.0,0.00104897]
[1735433835303,0.482174,95343.0,95316.0,0.07604897]
[1735433835512,0.00472415,95342.0,95316.0,0.07604897]
[1735433835727,0.482174,95341.0,95317.0,0.03624439]
[1735433835939,0.482174,95341.0,95318.0,0.07604897]
[1735433836154,0.00471893,95340.0,95318.0,0.07604897]
[1735433836364,0.482174,95339.0,95319.0,0.0462]
[1735433836553,0.482174,95339.0,95320.0,0.00104897]
[1735433836755,0.00471371,95338.0,95321.0,0.08334934]
[1735433836973,0.0164599,95335.0,95323.0,0.075]
[1735433837218,0.48686953,95334.0,95323.0,0.075]
[1735433837411,0.00469553,95334.0,95325.0,0.0462]